[Event "Malawi Open Chess Chp"]
[Site "followchess.com"]
[Date "2022.06.12"]
[Round "8"]
[White "Mwape, William"]
[Black "Luanja, Geoffrey"]
[Result "1/2-1/2"]
[WhiteElo "2177"]
[BlackElo "2150"]
[ECO "C88"]
[WhiteFed "ZAM"]
[BlackFed "ZAM"]
[FCGameId "-820835392"]
[WhiteFideId "8705453"]
[BlackFideId "8704287"]
[TimeControl "5400"]

1. e4 {[%clk 1:29:58]} e5 {[%clk 1:29:58]} 2. Nf3 {[%clk 1:29:41]} Nc6 
{[%clk 1:29:53]} 3. Bb5 a6 {[%clk 1:29:14]} 4. Ba4 {[%clk 1:29:21]} Nf6 
{[%clk 1:29:04]} 5. O-O {[%clk 1:29:04]} Be7 {[%clk 1:28:58]} 6. Re1 
{[%clk 1:28:44]} b5 {[%clk 1:28:48]} 7. Bb3 {[%clk 1:28:29]} O-O 
{[%clk 1:26:55]} 8. Nc3 {[%clk 1:27:56]} Re8 {[%clk 1:26:36]} 9. Ng5 
{[%clk 1:27:31]} Rf8 {[%clk 1:26:30]} 10. Nf3 {[%clk 1:27:21]} Re8 
{[%clk 1:26:23]} 11. Ng5 {[%clk 1:27:19]} Rf8 {[%clk 1:26:12]} 12. Nf3 
{[%clk 1:27:14]} Re8 {[%clk 1:26:04]} 13. Ng5 {[%clk 1:27:09]} 1/2-1/2

[Event "Malawi Open Chess Chp"]
[Site "followchess.com"]
[Date "2022.06.12"]
[Round "8"]
[White "Mwape Dennis"]
[Black "Mwale, Joseph"]
[Result "1/2-1/2"]
[WhiteElo "2013"]
[BlackElo "2154"]
[ECO "A05"]
[WhiteFed "ZAM"]
[BlackFed "MAW"]
[FCGameId "304829331"]
[WhiteFideId "8708886"]
[BlackFideId "16400135"]
[TimeControl "5400"]

1. Nf3 Nf6 {[%clk 1:29:52]} 2. g3 {[%clk 1:29:39]} g6 {[%clk 1:29:45]} 3. Bg2 
{[%clk 1:29:30]} Bg7 {[%clk 1:29:43]} 4. O-O {[%clk 1:29:19]} d5 
{[%clk 1:29:21]} 5. d3 {[%clk 1:29:12]} c5 {[%clk 1:25:50]} 6. Nbd2 
{[%clk 1:28:31]} Nc6 {[%clk 1:24:55]} 7. e4 {[%clk 1:28:24]} e5 {[%clk 1:23:07]} 
8. Re1 {[%clk 1:28:09]} dxe4 {[%clk 1:21:33]} 9. dxe4 {[%clk 1:28:05]} O-O 
{[%clk 1:21:17]} 10. c3 {[%clk 1:27:58]} Qc7 {[%clk 1:19:16]} 11. Qc2 
{[%clk 1:26:17]} b6 {[%clk 1:17:05]} 12. Nf1 {[%clk 1:26:06]} Ba6 
{[%clk 1:16:20]} 13. Bg5 {[%clk 1:26:04]} h6 {[%clk 1:15:46]} 14. Bxf6 
{[%clk 1:25:52]} Bxf6 {[%clk 1:15:41]} 15. Ne3 {[%clk 1:25:39]} Ne7 
{[%clk 1:13:37]} 16. Rad1 {[%clk 1:25:27]} Rad8 {[%clk 1:13:06]} 17. h4 
{[%clk 1:25:01]} Bb7 {[%clk 0:59:16]} 18. Nd2 {[%clk 1:24:25]} Ba6 
{[%clk 0:59:10]} 19. Nf3 {[%clk 1:24:18]} Bb7 {[%clk 0:59:07]} 20. Nd2 
{[%clk 1:24:12]} Ba6 {[%clk 0:59:03]} 21. Nf3 {[%clk 1:24:06]} Bb7 
{[%clk 0:59:00]} 22. Nd2 {[%clk 1:23:59]} Ba6 {[%clk 0:58:54]} 23. Nf3 Bb7 24. 
Ng4 Bg7 25. Qc1 Kh7 26. Nd2 Bc8 27. Ne3 Be6 28. Qc2 Ra8 1/2-1/2

[Event "Malawi Open Chess Chp"]
[Site "followchess.com"]
[Date "2022.06.12"]
[Round "8"]
[White "Kamwendo Precious"]
[Black "Mwale, George"]
[Result "1/2-1/2"]
[WhiteElo "1934"]
[BlackElo "2025"]
[ECO "B01"]
[WhiteFed "MAW"]
[BlackFed "MAW"]
[FCGameId "1722655511"]
[WhiteFideId "20500785"]
[BlackFideId "20500254"]
[TimeControl "5400"]

1. e4 {[%clk 1:30:00]} d5 {[%clk 1:29:47]} 2. exd5 {[%clk 1:29:52]} Nf6 
{[%clk 1:29:40]} 3. d4 {[%clk 1:29:13]} Nxd5 {[%clk 1:29:32]} 4. c4 
{[%clk 1:29:06]} Nf6 {[%clk 1:29:31]} 5. Nc3 {[%clk 1:28:52]} e6 
{[%clk 1:29:18]} 6. Nf3 {[%clk 1:28:34]} Be7 {[%clk 1:29:08]} 7. Be2 
{[%clk 1:28:07]} O-O {[%clk 1:28:58]} 8. O-O {[%clk 1:28:04]} h6 
{[%clk 1:26:49]} 9. h3 {[%clk 1:27:39]} c5 {[%clk 1:25:59]} 10. d5 
{[%clk 1:26:02]} exd5 {[%clk 1:25:45]} 11. cxd5 {[%clk 1:25:47]} Bd6 
{[%clk 1:25:32]} 12. Re1 {[%clk 1:22:45]} a6 {[%clk 1:24:16]} 13. a4 
{[%clk 1:22:41]} Nbd7 {[%clk 1:22:27]} 14. Bd3 {[%clk 1:21:24]} Nb6 
{[%clk 1:21:47]} 15. Qb3 {[%clk 1:18:50]} Nbxd5 {[%clk 1:16:52]} 16. Nxd5 
{[%clk 1:18:42]} Nxd5 {[%clk 1:16:26]} 17. Rd1 {[%clk 1:18:08]} Nb4 
{[%clk 1:15:02]} 18. Be3 {[%clk 1:17:04]} Qf6 {[%clk 1:14:11]} 19. Be2 
{[%clk 1:13:13]} Rd8 {[%clk 1:05:59]} 20. Rxd6 {[%clk 1:12:29]} Qxd6 
{[%clk 1:04:55]} 21. Rd1 {[%clk 1:12:18]} Be6 {[%clk 1:02:08]} 22. Rxd6 
{[%clk 1:10:14]} Bxb3 {[%clk 1:01:45]} 23. Rb6 {[%clk 1:09:50]} Bd1 
{[%clk 1:00:13]} 24. Bc4 {[%clk 1:03:50]} Bxf3 {[%clk 0:59:19]} 25. gxf3 
{[%clk 1:01:53]} Rd7 {[%clk 0:56:15]} 26. Bxc5 {[%clk 1:00:29]} Rc8 
{[%clk 0:55:51]} 27. Bxf7+ {[%clk 1:00:03]} Rxf7 {[%clk 0:54:39]} 28. Bxb4 
{[%clk 0:59:44]} Rc6 {[%clk 0:54:21]} 29. Rxc6 {[%clk 0:59:41]} bxc6 
{[%clk 0:54:07]} 30. Bc3 {[%clk 0:59:10]} Rxf3 {[%clk 0:53:48]} 31. Kg2 
{[%clk 0:59:03]} Rd3 {[%clk 0:53:31]} 32. h4 {[%clk 0:58:00]} Kf7 
{[%clk 0:52:55]} 33. f3 {[%clk 0:56:56]} g5 {[%clk 0:52:08]} 34. hxg5 
{[%clk 0:56:50]} hxg5 {[%clk 0:51:55]} 35. Kg3 {[%clk 0:56:41]} Kg6 
{[%clk 0:51:41]} 36. Kg4 {[%clk 0:56:36]} c5 {[%clk 0:51:16]} 37. f4 
{[%clk 0:56:20]} gxf4 {[%clk 0:50:38]} 38. Kxf4 {[%clk 0:56:13]} Rd1 
{[%clk 0:49:41]} 39. Ke4 {[%clk 0:56:04]} Kf7 {[%clk 0:49:21]} 40. Ke5 
{[%clk 0:55:31]} Ke7 {[%clk 0:49:09]} 41. Ke4 {[%clk 0:47:31]} Ke6 
{[%clk 0:48:13]} 42. b4 {[%clk 0:44:16]} cxb4 {[%clk 0:47:23]} 43. Bxb4 
{[%clk 0:43:48]} Ra1 {[%clk 0:47:17]} 44. Kd4 {[%clk 0:43:41]} Rxa4 
{[%clk 0:47:05]} 45. Kc3 {[%clk 0:43:19]} a5 {[%clk 0:46:25]} 46. Bc5 
{[%clk 0:42:48]} Kd5 {[%clk 0:45:52]} 47. Bf8 {[%clk 0:42:33]} Rf4 
{[%clk 0:45:28]} 48. Bh6 {[%clk 0:41:57]} Rf3+ {[%clk 0:45:07]} 49. Kb2 
{[%clk 0:41:47]} Kc4 {[%clk 0:44:24]} 50. Bg5 {[%clk 0:41:31]} a4 
{[%clk 0:39:00]} 51. Be7 {[%clk 0:39:58]} a3+ 52. Ka2 {[%clk 0:35:45]} Kb5 
{[%clk 0:35:21]} 53. Bxa3 {[%clk 0:34:32]} Ka4 {[%clk 0:35:19]} 54. Bc5 Rc3 55. 
Ba7 {[%clk 0:27:04]} Rc2+ 56. Kb1 {[%clk 0:26:55]} Kb3 {[%clk 0:34:46]} 57. Bb6 
{[%clk 0:24:19]} Rc6 {[%clk 0:33:55]} 58. Ba7 {[%clk 0:23:13]} Rc7 
{[%clk 0:32:50]} 59. Bb6 {[%clk 0:22:13]} Rb7 {[%clk 0:32:29]} 60. Be3 Re7 61. 
Bd2 Rh7 {-error} 1/2-1/2

[Event "Malawi Open Chess Chp"]
[Site "followchess.com"]
[Date "2022.06.12"]
[Round "8"]
[White "Chimthere, Alfred Charles"]
[Black "Kalambo Praise"]
[Result "1-0"]
[WhiteElo "2047"]
[BlackElo "1767"]
[ECO "B33"]
[WhiteFed "MAW"]
[BlackFed "MAW"]
[FCGameId "1866659416"]
[WhiteFideId "16400046"]
[BlackFideId "20506112"]
[TimeControl "5400"]

1. e4 {[%clk 1:29:28]} c5 {[%clk 1:29:24]} 2. Nf3 {[%clk 1:29:17]} Nc6 
{[%clk 1:29:14]} 3. d4 {[%clk 1:28:35]} cxd4 {[%clk 1:29:06]} 4. Nxd4 
{[%clk 1:28:33]} Nf6 {[%clk 1:28:33]} 5. Nxc6 {[%clk 1:26:28]} bxc6 
{[%clk 1:28:21]} 6. Nc3 {[%clk 1:26:01]} d6 {[%clk 1:25:11]} 7. Bd3 
{[%clk 1:23:35]} e5 {[%clk 1:24:35]} 8. O-O {[%clk 1:22:51]} Be7 
{[%clk 1:24:19]} 9. Rb1 {[%clk 1:18:30]} O-O {[%clk 1:23:57]} 10. h3 
{[%clk 1:18:20]} Be6 {[%clk 1:21:22]} 11. Qe2 {[%clk 1:16:47]} Nd7 
{[%clk 1:20:16]} 12. Bc4 {[%clk 1:15:32]} Nc5 {[%clk 1:17:25]} 13. b4 
{[%clk 1:11:25]} Bxc4 {[%clk 1:17:03]} 14. Qxc4 {[%clk 1:11:01]} Ne6 
{[%clk 1:16:37]} 15. Ne2 {[%clk 1:05:56]} Qc7 16. Qd3 {[%clk 1:00:37]} Rfd8 
{[%clk 1:08:54]} 17. c4 {[%clk 0:59:57]} Bf6 18. Be3 {[%clk 0:57:57]} a6 
{[%clk 1:05:29]} 19. Rfc1 {[%clk 0:52:11]} Qb7 {[%clk 1:04:44]} 20. Rd1 
{[%clk 0:49:31]} Rd7 {[%clk 1:04:07]} 21. a4 {[%clk 0:47:48]} Nc7 
{[%clk 1:01:01]} 22. a5 {[%clk 0:44:16]} d5 {[%clk 0:59:27]} 23. Bb6 
{[%clk 0:43:43]} d4 {[%clk 0:55:47]} 24. g3 {[%clk 0:36:56]} Be7 
{[%clk 0:54:38]} 25. f4 {[%clk 0:35:03]} f6 {[%clk 0:54:00]} 26. Rf1 
{[%clk 0:33:39]} Ne6 {[%clk 0:51:33]} 27. f5 {[%clk 0:31:19]} Ng5 
{[%clk 0:51:16]} 28. h4 {[%clk 0:30:45]} Nf7 {[%clk 0:51:06]} 29. c5 
{[%clk 0:30:34]} g5 {[%clk 0:48:55]} 30. fxg6 {[%clk 0:29:14]} hxg6 
{[%clk 0:48:38]} 31. Kg2 {[%clk 0:28:55]} Kg7 {[%clk 0:48:30]} 32. Rh1 
{[%clk 0:28:08]} Rh8 {[%clk 0:48:05]} 33. g4 {[%clk 0:26:02]} Nh6 
{[%clk 0:46:53]} 34. Kf3 {[%clk 0:24:33]} Qc8 {[%clk 0:45:17]} 35. Rbg1 
{[%clk 0:23:56]} Bd8 {[%clk 0:43:47]} 36. h5 {[%clk 0:22:00]} Rf7 
{[%clk 0:37:11]} 37. hxg6 {[%clk 0:20:55]} Rff8 {[%clk 0:36:47]} 38. Rh5 
{[%clk 0:16:31]} Qe6 {[%clk 0:34:46]} 39. Rg3 {[%clk 0:11:38]} Kxg6 
{[%clk 0:30:29]} 40. Qxa6 {[%clk 0:08:29]} Rhg8 {[%clk 0:26:18]} 41. Qd3 
{[%clk 0:07:08]} Nxg4 {[%clk 0:25:01]} 42. Rf5 {[%clk 0:05:59]} Kf7 
{[%clk 0:24:09]} 43. Rxg4 {[%clk 0:05:36]} Rxg4 {[%clk 0:23:58]} 44. Kxg4 
{[%clk 0:05:31]} Ke7 {[%clk 0:22:52]} 45. Ng3 {[%clk 0:04:49]} Rg8+ 
{[%clk 0:21:29]} 46. Kf3 {[%clk 0:04:28]} Kd7 {[%clk 0:20:29]} 47. Bxd8 
{[%clk 0:03:33]} Kxd8 {[%clk 0:20:02]} 48. a6 {[%clk 0:03:02]} Kc7 
{[%clk 0:19:38]} 49. b5 {[%clk 0:02:58]} cxb5 {[%clk 0:18:57]} 50. Qxb5 
{[%clk 0:02:42]} Rb8 {[%clk 0:18:49]} 51. Qa5+ {[%clk 0:02:34]} Kd7 
{[%clk 0:17:35]} 52. a7 {[%clk 0:02:14]} Rb3+ 53. Kg2 {[%clk 0:02:11]} Qg8 
{[%clk 0:13:19]} 1-0

[Event "Malawi Open Chess Chp"]
[Site "followchess.com"]
[Date "2022.06.12"]
[Round "8"]
[White "Mwazozo Hope"]
[Black "Chiona, Richard"]
[Result "0-1"]
[WhiteElo "1765"]
[BlackElo "1896"]
[ECO "B06"]
[WhiteFed "MAW"]
[BlackFed "MAW"]
[FCGameId "1717132955"]
[WhiteFideId "20500513"]
[BlackFideId "20500882"]
[TimeControl "5400"]

1. d4 {[%clk 1:29:58]} g6 {[%clk 1:29:38]} 2. e4 {[%clk 1:29:41]} d6 
{[%clk 1:28:56]} 3. Nc3 {[%clk 1:29:32]} Bg7 {[%clk 1:28:45]} 4. Nf3 
{[%clk 1:29:22]} Nf6 {[%clk 1:28:23]} 5. Bd3 {[%clk 1:28:23]} O-O 
{[%clk 1:28:17]} 6. O-O {[%clk 1:28:08]} Na6 {[%clk 1:27:57]} 7. Bxa6 
{[%clk 1:26:31]} bxa6 {[%clk 1:27:53]} 8. e5 {[%clk 1:25:49]} Ng4 
{[%clk 1:26:28]} 9. h3 {[%clk 1:24:51]} Nh6 {[%clk 1:26:26]} 10. Bf4 
{[%clk 1:24:28]} e6 {[%clk 1:24:49]} 11. Ne4 {[%clk 1:21:33]} Bb7 
{[%clk 1:22:45]} 12. Nf6+ {[%clk 1:18:41]} Kh8 {[%clk 1:21:04]} 13. Bg5 
{[%clk 1:18:03]} Bxf3 {[%clk 1:18:14]} 14. Qxf3 {[%clk 1:17:38]} Qc8 
{[%clk 1:17:47]} 15. Qf4 {[%clk 1:16:22]} Ng8 {[%clk 1:17:08]} 16. Nxg8 
{[%clk 1:12:02]} Kxg8 {[%clk 1:17:06]} 17. Bf6 {[%clk 1:11:52]} Rb8 
{[%clk 1:16:09]} 18. b3 {[%clk 1:10:17]} dxe5 {[%clk 1:15:09]} 19. dxe5 
{[%clk 1:09:01]} Qd7 {[%clk 1:11:48]} 20. h4 {[%clk 1:02:41]} Qc6 
{[%clk 1:11:39]} 21. h5 {[%clk 1:00:36]} h6 {[%clk 1:09:33]} 22. c4 
{[%clk 0:59:59]} a5 {[%clk 1:07:35]} 23. Rad1 {[%clk 0:58:58]} a4 
{[%clk 1:06:49]} 24. Rd3 {[%clk 0:58:50]} g5 {[%clk 1:05:47]} 25. Qg3 
{[%clk 0:54:05]} Bxf6 {[%clk 1:04:48]} 26. exf6 {[%clk 0:53:50]} axb3 
{[%clk 1:04:04]} 27. axb3 {[%clk 0:53:06]} Kh7 {[%clk 1:02:29]} 28. Rfd1 
{[%clk 0:51:21]} Qe4 {[%clk 1:00:34]} 29. Qxc7 {[%clk 0:49:21]} Qg4 
{[%clk 0:59:59]} 30. Qxa7 {[%clk 0:48:44]} Qxh5 {[%clk 0:59:31]} 31. Qe3 
{[%clk 0:46:46]} Rxb3 {[%clk 0:59:27]} 32. Qe4+ {[%clk 0:42:35]} Kg8 
{[%clk 0:59:05]} 33. c5 {[%clk 0:38:08]} Rxd3 {[%clk 0:58:31]} 34. Rxd3 
{[%clk 0:37:38]} Rb8 {[%clk 0:58:17]} 35. Rh3 {[%clk 0:34:23]} Qg6 
{[%clk 0:55:41]} 36. Qxg6+ {[%clk 0:31:53]} fxg6 {[%clk 0:55:40]} 37. Rxh6 
{[%clk 0:31:40]} Kf7 {[%clk 0:55:37]} 38. Rh7+ {[%clk 0:29:27]} Kxf6 
{[%clk 0:54:26]} 39. c6 {[%clk 0:28:14]} Rb1+ 40. Kh2 {[%clk 0:28:01]} Rc1 
{[%clk 0:53:49]} 41. Rc7 {[%clk 0:24:37]} g4 {[%clk 0:53:24]} 42. Rc8 
{[%clk 0:23:43]} Kg5 {[%clk 0:53:22]} 43. c7 {[%clk 0:23:20]} Rc3 
{[%clk 0:52:51]} 44. g3 {[%clk 0:22:08]} Rc1 {[%clk 0:52:24]} 45. Kg2 
{[%clk 0:21:38]} e5 {[%clk 0:52:20]} 46. Kh2 {[%clk 0:20:56]} e4 
{[%clk 0:52:14]} 47. Kg2 {[%clk 0:20:51]} Rc4 {[%clk 0:52:04]} 48. Kf1 
{[%clk 0:20:08]} Rc3 {[%clk 0:51:31]} 49. Ke2 {[%clk 0:19:49]} Rc6 
{[%clk 0:49:26]} 50. Kd2 {[%clk 0:19:35]} Rd6+ 51. Ke3 {[%clk 0:19:01]} Rc6 
{[%clk 0:48:47]} 52. Kd4 {[%clk 0:15:48]} Rc1 {[%clk 0:48:34]} 53. Kd5 
{[%clk 0:14:44]} Rc2 {[%clk 0:48:29]} 54. Kd6 {[%clk 0:14:01]} Rd2+ 55. Ke6 
{[%clk 0:13:42]} Rc2 {[%clk 0:47:46]} 56. Rb8 {[%clk 0:13:27]} Rxc7 
{[%clk 0:47:44]} 57. Rb5+ Kh6 58. Rb2 {[%clk 0:10:33]} Rc5 {[%clk 0:47:31]} 59. 
Re2 {[%clk 0:09:44]} Rf5 {[%clk 0:46:31]} 60. Rxe4 {[%clk 0:08:45]} Rxf2 
{[%clk 0:46:27]} 61. Rxg4 {[%clk 0:08:26]} Rf3 {[%clk 0:45:59]} 62. Rf4 
{[%clk 0:04:39]} Rxg3 {[%clk 0:45:54]} 63. Kf6 {[%clk 0:04:35]} Kh5 
{[%clk 0:44:24]} 64. Rf1 {[%clk 0:04:31]} g5 {[%clk 0:43:57]} 65. Kf5 
{[%clk 0:04:00]} Rh3 {[%clk 0:43:32]} 66. Rf2 {[%clk 0:03:29]} Kh4 
{[%clk 0:43:22]} 67. Rf1 {[%clk 0:03:28]} g4 {[%clk 0:43:11]} 68. Kf4 
{[%clk 0:03:27]} Rh2 {[%clk 0:42:49]} 69. Ra1 {[%clk 0:02:55]} Rf2+ 
{[%clk 0:42:47]} 70. Ke3 {[%clk 0:02:54]} g3 {[%clk 0:41:34]} 71. Rh1+ 
{[%clk 0:02:36]} Rh2 {[%clk 0:41:13]} 72. Ra1 {[%clk 0:02:34]} Kh3 
{[%clk 0:39:11]} 73. Ra8 {[%clk 0:02:18]} Rf2 {[%clk 0:38:34]} 74. Rh8+ 
{[%clk 0:02:15]} Kg2 {[%clk 0:38:32]} 75. Rh5 {[%clk 0:02:11]} Rf7 
{[%clk 0:38:11]} 76. Ke2 {[%clk 0:02:10]} Re7+ {[%clk 0:37:59]} 77. Kd1 
{[%clk 0:02:07]} Kf1 {[%clk 0:37:33]} 78. Rf5+ {[%clk 0:02:06]} Kg1 
{[%clk 0:37:30]} 79. Rg5 {[%clk 0:02:04]} g2 {[%clk 0:36:55]} 80. Rg8 
{[%clk 0:02:03]} Rh7 {[%clk 0:36:00]} 81. Ke1 {[%clk 0:02:02]} Kh1 
{[%clk 0:35:45]} 82. Kf2 {[%clk 0:01:49]} Rf7+ {[%clk 0:35:38]} 83. Ke2 
{[%clk 0:01:45]} g1=Q {[%clk 0:35:20]} 84. Rh8+ {[%clk 0:01:44]} Qh2+ 
{[%clk 0:35:18]} 0-1

[Event "Malawi Open Chess Chp"]
[Site "followchess.com"]
[Date "2022.06.12"]
[Round "8"]
[White "Nyama Peter"]
[Black "Nyambalo, Joseph Xavier"]
[Result "1/2-1/2"]
[WhiteElo "1851"]
[BlackElo "2043"]
[ECO "E12"]
[WhiteFed "MAW"]
[BlackFed "MAW"]
[FCGameId "116972956"]
[WhiteFideId "20501927"]
[BlackFideId "20500041"]
[TimeControl "5400"]

1. c4 {[%clk 1:29:49]} Nf6 {[%clk 1:29:53]} 2. d4 {[%clk 1:29:43]} e6 
{[%clk 1:29:38]} 3. a3 {[%clk 1:29:34]} b6 {[%clk 1:29:18]} 4. Nc3 
{[%clk 1:29:22]} Bb7 {[%clk 1:29:09]} 5. Nf3 {[%clk 1:29:00]} Be7 
{[%clk 1:28:53]} 6. e3 {[%clk 1:28:44]} O-O {[%clk 1:28:23]} 7. Bd3 
{[%clk 1:28:38]} d5 {[%clk 1:27:58]} 8. cxd5 {[%clk 1:28:18]} Nxd5 
{[%clk 1:26:56]} 9. O-O {[%clk 1:28:02]} Nd7 {[%clk 1:26:04]} 10. e4 
{[%clk 1:27:31]} Nxc3 {[%clk 1:25:41]} 11. bxc3 {[%clk 1:27:14]} c5 
{[%clk 1:21:55]} 12. Qe2 {[%clk 1:26:56]} Qc7 {[%clk 1:20:57]} 13. Be3 
{[%clk 1:25:58]} c4 {[%clk 1:20:26]} 14. Bc2 {[%clk 1:25:26]} Rac8 
{[%clk 1:18:36]} 15. e5 {[%clk 1:23:58]} f6 16. exf6 {[%clk 1:23:19]} Bxf6 
{[%clk 1:15:49]} 17. Ng5 {[%clk 1:18:47]} Bxg5 {[%clk 1:15:09]} 18. Bxg5 
{[%clk 1:18:38]} Qc6 {[%clk 1:14:21]} 19. f3 {[%clk 1:16:44]} Rce8 
{[%clk 1:13:56]} 20. Be4 {[%clk 1:15:52]} Qc7 {[%clk 1:13:36]} 21. Bxb7 
{[%clk 1:15:36]} Qxb7 {[%clk 1:10:59]} 22. Qxc4 {[%clk 1:15:24]} Rf5 
{[%clk 1:10:43]} 23. Bd2 {[%clk 1:14:54]} Nf6 {[%clk 1:10:26]} 24. Rae1 
{[%clk 1:14:22]} Nd5 {[%clk 1:10:01]} 25. Re4 {[%clk 1:13:41]} Qd7 
{[%clk 1:08:27]} 26. Rfe1 {[%clk 1:13:17]} b5 {[%clk 1:04:55]} 27. Qe2 Rf6 28. 
Re5 {[%clk 1:10:04]} a6 {[%clk 1:04:28]} 29. a4 {[%clk 1:09:26]} h6 
{[%clk 1:02:45]} 30. axb5 {[%clk 1:08:59]} axb5 {[%clk 1:02:44]} 31. Qe4 
{[%clk 1:07:13]} Nb6 {[%clk 1:01:01]} 32. Bf4 {[%clk 1:04:02]} Ref8 
{[%clk 0:55:41]} 33. Bg3 {[%clk 1:02:25]} Na4 {[%clk 0:54:35]} 34. Qd3 
{[%clk 0:59:35]} Rc8 {[%clk 0:53:56]} 35. Rc1 {[%clk 0:56:54]} b4 
{[%clk 0:52:59]} 36. Be1 {[%clk 0:52:51]} Nb2 {[%clk 0:41:21]} 37. Qe2 
{[%clk 0:49:16]} bxc3 {[%clk 0:40:22]} 38. Bxc3 {[%clk 0:48:32]} Na4 
{[%clk 0:38:47]} 39. Qe3 {[%clk 0:47:48]} Nb6 {[%clk 0:36:59]} 40. Qd3 
{[%clk 0:43:34]} Nd5 {[%clk 0:35:49]} 41. Bd2 {[%clk 0:43:18]} Rxc1+ 42. Bxc1 
{[%clk 0:43:16]} Qc6 {[%clk 0:33:56]} 43. Bd2 {[%clk 0:43:06]} Qa4 
{[%clk 0:33:24]} 44. Kf2 {[%clk 0:40:37]} Qa2 {[%clk 0:31:53]} 45. Re2 
{[%clk 0:40:10]} Qa7 {[%clk 0:31:18]} 46. g3 {[%clk 0:39:24]} Qf7 
{[%clk 0:29:09]} 47. Kg2 {[%clk 0:39:09]} Qh5 {[%clk 0:28:37]} 48. Re5 
{[%clk 0:38:38]} Qf7 {[%clk 0:27:28]} 49. Qe4 {[%clk 0:37:53]} Qd7 
{[%clk 0:26:45]} 50. f4 {[%clk 0:36:47]} Qc6 {[%clk 0:25:50]} 51. Kh3 
{[%clk 0:34:09]} g6 {[%clk 0:22:13]} 52. Be3 {[%clk 0:33:21]} Kf7 
{[%clk 0:21:27]} 53. Bf2 {[%clk 0:33:02]} Qc4 54. Kg2 {[%clk 0:32:49]} h5 
{[%clk 0:18:59]} 55. h4 {[%clk 0:32:32]} Qa2 {[%clk 0:17:41]} 56. Kg1 
{[%clk 0:31:39]} Qa1+ {[%clk 0:16:50]} 57. Kg2 {[%clk 0:31:18]} Qa8 
{[%clk 0:16:36]} 58. Kh2 {[%clk 0:30:18]} Qb7 {[%clk 0:16:11]} 59. Qc2 
{[%clk 0:29:36]} Qa6 {[%clk 0:14:52]} 60. Kg2 {[%clk 0:28:47]} Qb7 
{[%clk 0:14:01]} 61. Kg1 {[%clk 0:28:45]} Qa8 {[%clk 0:13:20]} 62. Qc5 
{[%clk 0:28:25]} Qa4 {[%clk 0:11:29]} 63. Qc8 {[%clk 0:27:36]} Qd1+ 
{[%clk 0:11:02]} 64. Re1 {[%clk 0:27:17]} Qg4 {[%clk 0:08:46]} 65. Qd7+ 
{[%clk 0:26:04]} Kg8 {[%clk 0:07:04]} 66. Rc1 {[%clk 0:24:41]} Rxf4 
{[%clk 0:05:49]} 1/2-1/2

[Event "Malawi Open Chess Chp"]
[Site "followchess.com"]
[Date "2022.06.12"]
[Round "8"]
[White "Chiwambo Stansford"]
[Black "Foster Ken"]
[Result "1/2-1/2"]
[WhiteElo "1936"]
[BlackElo "1886"]
[ECO "A05"]
[WhiteFed "MAW"]
[BlackFed "MAW"]
[FCGameId "-1843412644"]
[WhiteFideId "20500530"]
[BlackFideId "20502109"]
[TimeControl "5400"]

1. Nf3 {[%clk 1:29:56]} Nf6 {[%clk 1:29:56]} 2. g3 {[%clk 1:29:41]} g6 
{[%clk 1:29:52]} 3. Bg2 {[%clk 1:29:38]} Bg7 {[%clk 1:29:50]} 4. c4 
{[%clk 1:29:13]} d6 {[%clk 1:29:40]} 5. Nc3 {[%clk 1:29:08]} O-O 
{[%clk 1:29:33]} 6. O-O {[%clk 1:29:02]} e5 {[%clk 1:29:18]} 7. d3 
{[%clk 1:28:39]} h6 {[%clk 1:28:27]} 8. e4 {[%clk 1:26:37]} a5 {[%clk 1:27:47]} 
9. h3 {[%clk 1:26:02]} Na6 {[%clk 1:27:37]} 10. Be3 {[%clk 1:25:50]} Kh7 
{[%clk 1:27:24]} 11. Rc1 {[%clk 1:24:33]} Be6 {[%clk 1:26:48]} 12. Qd2 
{[%clk 1:23:46]} Nd7 {[%clk 1:26:06]} 13. Nh2 {[%clk 1:22:02]} Ndc5 
{[%clk 1:25:07]} 14. f4 {[%clk 1:15:13]} f5 {[%clk 1:23:58]} 15. Rcd1 
{[%clk 1:08:55]} Qc8 {[%clk 1:18:04]} 16. fxe5 {[%clk 1:04:41]} dxe5 
{[%clk 1:16:32]} 17. Nd5 {[%clk 1:04:01]} fxe4 {[%clk 1:06:17]} 18. Rxf8 
{[%clk 1:02:58]} Qxf8 {[%clk 1:06:13]} 19. Rf1 {[%clk 1:02:17]} Qd8 
{[%clk 1:05:26]} 20. Ng4 {[%clk 0:56:24]} Bxg4 {[%clk 1:02:33]} 21. hxg4 
{[%clk 0:56:16]} c6 {[%clk 1:02:26]} 22. Bxh6 {[%clk 0:51:12]} cxd5 
{[%clk 1:01:03]} 23. Rf7 {[%clk 0:51:00]} Ne6 24. cxd5 {[%clk 0:50:21]} Qxd5 
{[%clk 1:00:26]} 25. Bxe4 {[%clk 0:49:29]} Qc5+ {[%clk 0:59:30]} 26. Be3 
{[%clk 0:48:48]} Qb4 {[%clk 0:59:08]} 27. Qh2+ {[%clk 0:47:18]} Kg8 
{[%clk 0:59:06]} 28. Bxg6 {[%clk 0:46:18]} Qe1+ {[%clk 0:51:09]} 29. Kg2 
{[%clk 0:46:14]} Nf4+ {[%clk 0:49:26]} 30. gxf4 {[%clk 0:44:50]} Qe2+ 31. Bf2 
Qe1 32. Be3 Qe2+ 33. Bf2 Qxg4+ 34. Qg3 Qxg3+ 35. Bxg3 exf4 36. Rxf4 Bxb2 37. Rf7 
Nc5 38. Rc7 b6 39. Kf3 Rd8 40. Ke3 Bd4+ 41. Kd2 Rd7 1/2-1/2

[Event "Malawi Open Chess Chp"]
[Site "followchess.com"]
[Date "2022.06.12"]
[Round "8"]
[White "Shaba Martin"]
[Black "Mkwezalamba Elija"]
[Result "1-0"]
[WhiteElo "1707"]
[BlackElo "1563"]
[ECO "D02"]
[WhiteFed "MAW"]
[BlackFed "MAW"]
[FCGameId "1858511661"]
[WhiteFideId "20506627"]
[BlackFideId "20508042"]
[TimeControl "5400"]

1. d4 {[%clk 1:29:29]} Nf6 {[%clk 1:29:27]} 2. Nf3 {[%clk 1:28:58]} d5 
{[%clk 1:29:05]} 3. b3 {[%clk 1:28:39]} Bf5 {[%clk 1:28:15]} 4. g3 
{[%clk 1:27:44]} e6 {[%clk 1:27:44]} 5. Bg2 {[%clk 1:27:05]} Ne4 
{[%clk 1:27:00]} 6. Bb2 {[%clk 1:25:56]} c5 {[%clk 1:26:52]} 7. e3 
{[%clk 1:23:25]} Qf6 {[%clk 1:25:46]} 8. Nbd2 {[%clk 1:21:49]} Bg4 
{[%clk 1:25:23]} 9. Qc1 {[%clk 1:20:14]} Nc6 {[%clk 1:23:00]} 10. dxc5 
{[%clk 1:18:53]} Qf5 {[%clk 1:22:04]} 11. O-O {[%clk 1:15:09]} Nxd2 
{[%clk 1:20:21]} 12. Nxd2 {[%clk 1:14:56]} Bxc5 {[%clk 1:20:00]} 13. e4 
{[%clk 1:13:30]} Qg5 {[%clk 1:18:56]} 14. exd5 {[%clk 1:12:20]} exd5 
{[%clk 1:18:16]} 1-0